Cogmind - Beta 17 @@@ ROGUE MODE // 2026.08.03 @ 21:26:50 Player: dispear Result: Destroyed by G-34 Mercenary with Small Laser Performance ------------- Evolutions (1) 500 Regions Visited (3) 600 Robots Destroyed (4) 20 Value Destroyed (96) 96 Prototype IDs (0) 0 Alien Tech Used (0) 0 Bonus (0) 0 TOTAL SCORE: 1216 Bonus ------- None Cogmind --------- Core Integrity 0/400 Matter 300/300 Energy 95/100 System Corruption 0% Temperature Warm (111) Movement Core (50) Location -9/Mines Parts ------- > --- POWER (1) -------- (None) > --- PROPULSION (4) --- (None) > --- UTILITY (2) ------ (None) > --- WEAPON (2) ------- (None) > --- INVENTORY (5) ---- Ion Engine Heat Sink Heat Sink Peak State ------------ > --- POWER ------------ Improved Ion Engine > --- PROPULSION ------- Carbon-fiber Leg > --- UTILITY ---------- Small Storage Unit Seismic Detector > --- WEAPON ----------- Small Laser Beamcaster > --- INVENTORY -------- Ion Engine Heat Sink Heat Sink Small Laser Mining Claw [Rating: 13] Favorites ----------- Power Ion Engine Engine Ion Engine Propulsion Aluminum Leg Leg Aluminum Leg Utility Small Storage Unit Device Seismic Detector Storage Small Storage Unit Weapon Small Laser Energy Gun Small Laser Slashing Weapon Mining Claw Build | -11 -10 -9 -9 ------- Run | Yrd Mat Mat Min Slots Evolved 2 | . . 2 . Power . | . . . . Propulsion 2 | . . 2 . Utility . | . . . . Weapon . | . . . . Parts Attached 12 | 8 . 1 3 Power 3 | 2 . 1 . Engine 3 | 2 . 1 . Core . | . . . . Reactor . | . . . . Propulsion 3 | 2 . . 1 Treads . | . . . . Leg 3 | 2 . . 1 Wheel . | . . . . Hover . | . . . . Flight . | . . . . Utility 2 | 2 . . . Device 1 | 1 . . . Storage 1 | 1 . . . Processor . | . . . . Hackware . | . . . . Protection . | . . . . Artifact . | . . . . Weapon 4 | 2 . . 2 Energy Gun 3 | 2 . . 1 Energy Cannon . | . . . . Ballistic Gun . | . . . . Ballistic Cannon . | . . . . Launcher . | . . . . Special Weapon . | . . . . Impact Weapon . | . . . . Slashing Weapon 1 | . . . 1 Piercing Weapon . | . . . . Special Melee Weapon . | . . . . Unidentified Prototypes . | . . . . Parts Lost 10 | . . . 10 Power 1 | . . . 1 Propulsion 3 | . . . 3 Utility 2 | . . . 2 Weapon 4 | . . . 4 Highest Loss Streak 10 | . . . 10 To Critical Strikes . | . . . . Average Backups 2 | . 2 3 4 Power . | . 1 1 1 Propulsion . | . . . . Utility . | . . 1 2 Weapon . | . . 1 1 Tool/Special . | . . . . Unused Backups 2 | . 1 . 1 Power . | . . . . Propulsion . | . . . . Utility 1 | . . . 1 Weapon 1 | . 1 . . Tool/Special . | . . . . Average Slot Usage (%) 80 | . 100 77 50 Engine 11 | . 14 11 7 Leg 22 | . 28 22 11 Device 11 | . 14 11 7 Storage 11 | . 14 11 7 Energy Gun 22 | . 28 22 14 Peak Build Rating 13 | 7 7 8 13 Average Rating 6 | 4 7 7 6 On Entrance 5 | . 7 7 8 Avg Prop Armor Cover (%) . | . . . . Naked Turns 4 | . . . 4 Heaviest Build 20 | 13 13 15 20 Greatest Support 20 | 20 20 20 20 Greatest Overweight (x) 6 | 2 . . 6 Average Overweight (x) . | . . . . Largest Inventory Capacity 8 | 8 8 8 8 Average Capacity 7 | 7 8 8 7 Most Carried 5 | 2 3 5 5 Average Carried 2 | . 2 3 4 Final Capacity 8 | 8 8 8 5 Final Carried 5 | 2 3 5 3 Class Distribution -------------------- 100% | Mutant Dominant Class ---------------- Mutant | -10/Materials Mutant | -9/Materials Mutant | -9/Mines Resources | -11 -10 -9 -9 ----------- Run | Yrd Mat Mat Min Matter Collected 272 | 179 . 93 . Remotely . | . . . . Salvage Created 143 | 30 . 93 20 Parts 7 | 2 . 4 1 Haulers Intercepted . | . . . . Recyclers Shooed . | . . . . Parts Field Recycled . | . . . . Retrieved Matter . | . . . . Parts Self-Destructed . | . . . . Prevented . | . . . . Parts Restored . | . . . . Kills | -11 -10 -9 -9 ------- Run | Yrd Mat Mat Min Combat Hostiles Destroyed 3 | . . 2 1 Guns 3 | . . 2 1 Classes Destroyed 4 | 1 . 2 1 Tunneler 1 | 1 . . . Swarmer 1 | . . . 1 Grunt 1 | . . 1 . Sentry 1 | . . 1 . Best Kill Streak 1 | 1 . 1 1 Combat Bots Only 1 | . . 1 1 Max Kills in Single Turn 1 | 1 . 1 1 Gunslinging . | . . . . Exploded . | . . . . Melee . | . . . . Uniques/NPCs Destroyed . | . . . . Combat | -11 -10 -9 -9 -------- Run | Yrd Mat Mat Min Hostile Shots Fired 140 | . . 15 125 Missed 37 | . . 7 30 Hits 103 | . . 8 95 Melee 1 | . . . 1 Projectile 102 | . . 8 94 Damage Taken 1252 | . . 94 1158 Core 409 | . . . 409 Absorbed by Shields . | . . . . Core Remaining (%) 100 | 100 100 . . Volleys Fired 18 | 1 . 9 8 Largest 2 | 2 . 2 2 Hottest 115 | 80 . 80 115 Shots Fired 33 | 2 . 18 13 Gun 33 | 2 . 18 13 Cannon . | . . . . Launcher . | . . . . Special . | . . . . Kinetic . | . . . . Thermal 33 | 2 . 18 13 Explosive . | . . . . Electromagnetic . | . . . . Robot Hit Streak 8 | 2 . 8 3 Robot Miss Streak 3 | . . 1 3 Penetration Max . | . . . . Secondary Targets . | . . . . Shots Hit Robots 24 | 2 . 14 8 Core Hits 7 | 1 . 4 2 Critical Kills . | . . . . Critical Parts Destroyed . | . . . . Critical Strikes . | . . . . Melee Attacks 3 | . . . 3 Impact . | . . . . Slashing 3 | . . . 3 Piercing . | . . . . Sneak Attacks . | . . . . Combat Hostiles . | . . . . Follow-up Attacks . | . . . . Damage Inflicted 352 | 24 . 157 171 Guns 321 | 24 . 157 140 Cannons . | . . . . Explosions . | . . . . Melee 24 | . . . 24 Ramming 7 | . . . 7 Kinetic . | . . . . Thermal 321 | 24 . 157 140 Explosive . | . . . . Electromagnetic . | . . . . Impact . | . . . . Slashing 24 | . . . 24 Piercing . | . . . . Highest Corruption . | . . . . Average Corruption . | . . . . Corruption Purged . | . . . . Corruption Blocked . | . . . . Overload Shots . | . . . . Overflow Damage . | . . . . Projectiles . | . . . . Explosions . | . . . . Melee . | . . . . Knockbacks . | . . . . Impact . | . . . . Kinetic . | . . . . Secondary . | . . . . Self-Inflicted Damage 3 | . . . 3 Shots . | . . . . Rammed 2 | . . . 2 Targets Rammed 2 | . . . 2 Kicked . | . . . . Crushed . | . . . . Highest Temperature 399 | 18 . 75 399 Average Temperature 121 | 12 . 33 193 Received Heat Transfer 648 | . . 54 594 Effects 2 | . . . 2 Shutdowns 1 | . . . 1 Interference 1 | . . . 1 Siege Activations . | . . . . Martial Activations . | . . . . Shielding Activations . | . . . . Robots Disrupted . | . . . . Combat Hostiles . | . . . . Robots Corrupted . | . . . . Combat Hostiles . | . . . . Parts Fried . | . . . . Impact Corruptions . | . . . . Robots Melted . | . . . . Combat Hostiles . | . . . . Parts Melted 2 | 1 . 1 . Heat Transferred 673 | 50 . 350 273 Parts Sabotaged . | . . . . Parts Stolen . | . . . . Parts Stripped . | . . . . Power Chain Reactions . | . . . . Alert | -11 -10 -9 -9 ------- Run | Yrd Mat Mat Min Maximum Alert Level . | . . . . Low Security (%) 100 | 100 100 100 100 Level 1 . | . . . . Level 2 . | . . . . Level 3 . | . . . . Level 4 . | . . . . Level 5 . | . . . . High Security . | . . . . Max Security . | . . . . Peak Influence 30 | 5 . 30 20 Initial 7 | . . . 7 Average 2 | . . 5 5 Influence Increases 75 | 5 . 50 20 Destroy 0b10 Robot/C 60 | . . 40 20 Destroy 0b10 Robot/NC 5 | 5 . . . Destroy Leader 10 | . . 10 . Influence Decreases 75 | 5 . 30 40 Entered New Map 13 | . . . 13 Time Decay 35 | 5 . 30 . Lost Part 27 | . . . 27 Squads Dispatched 1 | . 1 . . Investigation . | . . . . Extermination . | . . . . Reinforcement 1 | . 1 . . Assault . | . . . . Garrison . | . . . . Intercept . | . . . . Searches Triggered . | . . . . Construction Impeded . | . . . . Haulers Reinforced . | . . . . Active Scanning Responses . | . . . . Cargo Convoy Interrupts . | . . . . Stealth | -11 -10 -9 -9 --------- Run | Yrd Mat Mat Min Distress Signals . | . . . . Communications Jammed . | . . . . Distress Signals . | . . . . Times Spotted 13 | . 2 2 9 Peak Tracking Total 9 | . 1 2 9 Tactical Retreats . | . . . . Traps | -11 -10 -9 -9 ------- Run | Yrd Mat Mat Min Traps Triggered . | . . . . Indirectly . | . . . . Trap Hack Attempts . | . . . . Triggered . | . . . . Disarmed . | . . . . Reprogrammed . | . . . . Reused . | . . . . Traps Extracted . | . . . . Installed . | . . . . Triggered . | . . . . Machines | -11 -10 -9 -9 ---------- Run | Yrd Mat Mat Min Machines Disabled . | . . . . Max in Single Turn . | . . . . Machines Repaired . | . . . . Machines Dismantled . | . . . . Machines Sabotaged . | . . . . Overloaded Fab Kills . | . . . . Hacking | -11 -10 -9 -9 --------- Run | Yrd Mat Mat Min Machines Accessed 2 | . 2 . . Terminals 1 | . 1 . . Fabricators . | . . . . Repair Stations . | . . . . Recycling Units 1 | . 1 . . Scanalyzers . | . . . . Garrison Access . | . . . . Total Hacks 5 | . 5 . . Successful 3 | . 3 . . Failed 2 | . 2 . . Catastrophic 1 | . 1 . . Database Lockouts . | . . . . Manual 1 | . 1 . . Terminals 1 | . 1 . . Fabricators . | . . . . Repair Stations . | . . . . Recycling Units 4 | . 4 . . Scanalyzers . | . . . . Garrison Access . | . . . . Terminal Hacks . | . . . . Fabricator Hacks . | . . . . Repair Station Hacks . | . . . . Recycling Unit Hacks 3 | . 3 . . Recycle Component 1 | . 1 . . Report Inventory 1 | . 1 . . Retrieve Matter 1 | . 1 . . Scanalyzer . | . . . . Garrison Access Hacks . | . . . . Unauthorized Hacks . | . . . . Terminals . | . . . . Fabricators . | . . . . Repair Stations . | . . . . Recycling Units . | . . . . Scanalyzers . | . . . . Garrison Access . | . . . . Data Cores Recovered . | . . . . Used . | . . . . Hacking Detections 1 | . 1 . . Full Trace Events . | . . . . Feedback Events . | . . . . Feedback Blocked . | . . . . Robot Schematics Acquired . | . . . . Robots Built . | . . . . Authchips . | . . . . Time . | . . . . Total Robot Build Rating . | . . . . Part Schematics Acquired . | . . . . Parts Built . | . . . . Authchips . | . . . . Time . | . . . . Total Part Build Rating . | . . . . Part Studies Acquired . | . . . . Parts Repaired . | . . . . Time . | . . . . Parts Recycled 1 | . 1 . . Recycled Matter . | . . . . Retrieved Matter . | . . . . Retrieved Components . | . . . . Parts Scanalyzed . | . . . . Part Schematics Acquired . | . . . . Parts Damaged . | . . . . Bothacking | -11 -10 -9 -9 ------------ Run | Yrd Mat Mat Min Used RIF Installer . | . . . . Robots Hacked . | . . . . Non-combat . | . . . . Combat . | . . . . Robot Hacks Applied . | . . . . Relay Couplers Released . | . . . . Fabnet Peak Effective % . | . . . . Robots Rewired . | . . . . Allies Hacked . | . . . . Hacks Repelled . | . . . . Allies | -11 -10 -9 -9 -------- Run | Yrd Mat Mat Min Total Allies . | . . . . Largest Group . | . . . . Highest-Rated Group . | . . . . Highest-Rated Ally . | . . . . Total Orders . | . . . . Ally Attacks . | . . . . Total Damage . | . . . . Kills . | . . . . Allies Corrupted . | . . . . Allies Melted . | . . . . Intel | -11 -10 -9 -9 ------- Run | Yrd Mat Mat Min Active Infowar (turns) 276 | 4 125 106 41 Seismic 276 | 4 125 106 41 Robot Analysis Total . | . . . . Derelict Logs Recovered . | . . . . Drone Launches . | . . . . Drone Recoveries . | . . . . Exploration | -11 -10 -9 -9 ------------- Run | Yrd Mat Mat Min Turns Passed 352 | 63 125 106 58 Spaces Moved 192 | 38 82 55 17 Core 12 | 7 . . 5 Treads . | . . . . Legs 180 | 31 82 55 12 Wheels . | . . . . Hover . | . . . . Flight . | . . . . Fastest Speed 50 | 50 120 120 50 Average Speed 121 | 126 120 120 117 Slowest Speed 350 | 190 120 120 350 Overloaded Moves . | . . . . Propulsion Burnouts . | . . . . Robots Hopped . | . . . . Potential Cave-ins . | . . . . Cave-ins Triggered . | . . . . Exploration Rate (%) 10 | 3 24 12 4 Regions Visited 3 Branch Regions 1 Pre-discovered Areas . | . . . . Known Exits Taken . | . . . . Unknown Exits Taken 3 | 1 1 1 . Scrap Searched . | . . . . Spaces Dug . | . . . . Terrain Destroyed . | . . . . Melee . | . . . . Projectile . | . . . . AOE . | . . . . Terrain Rammed . | . . . . Walls Destroyed . | . . . . Machines Disabled . | . . . . Actions | -11 -10 -9 -9 --------- Run | Yrd Mat Mat Min Total 266 | 47 108 76 35 Wait 36 | . 25 11 . Move 189 | 37 81 54 17 Hop . | . . . . Pick Up 4 | 1 2 1 . Fast Attach 8 | 7 . . 1 Attach 2 | . . . 2 Detach . | . . . . Swap 3 | 1 . 1 1 Drop 1 | . . . 1 Fire 18 | 1 . 9 8 Melee 3 | . . . 3 Ram 2 | . . . 2 Kick . | . . . . Crush . | . . . . Escape Stasis . | . . . . Rewire . | . . . . Trap . | . . . . Miscellaneous . | . . . . Route ------- -11/Scrapyard -10/Materials -9/Materials -9/Mines History --------- Turn | Location | Event 27 | -11/Scrapyard | Discovered new exit (range 15) 64 | -11/Scrapyard | Entered Materials 175 | -10/Materials | Discovered new exit (range 12) 189 | -10/Materials | Entered another Materials area 189 | -9/Materials | Evolved 2 slots: Propulsion x2 262 | -9/Materials | Discovered new exit (range 11) 295 | -9/Materials | Entered Mines 339 | -9/Mines | Core integrity fell below 50% 346 | -9/Mines | Core integrity fell below 20% 353 | -9/Mines | Destroyed by G-34 Mercenary with Small Laser Last Messages --------------- 00307_ BG-MXI(g): "Mission, incomplete...*fzzt*" 00307_ BG-MXI(g) destroyed. 00311_ Aluminum Leg destroyed. 00312_ Acquired Carbon-fiber Leg. 00313_ Aluminum Leg destroyed. 00316_ S-10 Pest destroyed. 00325_ G-34 Mercenary destroyed. 00327_ Carbon-fiber Leg destroyed. 00328_ Sml. Laser destroyed. 00332_ Power failure, Imp. Ion Engine shutdown. 00332_ Imp. Ion Engine destroyed. 00334_ Beamcaster destroyed. 00335_ Sml. Storage Unit destroyed. 00336_ Seismic Detector destroyed. 00342_ Overheating: System interference. 00342_ Mining Claw temporarily disabled. 00344_ Slammed into G-34 Mercenary. 00345_ G-34 Mercenary destroyed. 00347_ Mining Claw destroyed. 00349_ Sml. Laser destroyed. Map ----- +----------------------------------------------------+ | ??????????????????????????????????????? | | ??????????????????????????????????????? | | ??????????????????????????????????????? | | ??????????????????????????????????????? | | ??????????????????????????????????????? | | ??????????????????????????????????????? | | ??????????????????????????????????????? | | ??????????????????????????????????????? | | ??????????????????????????????????????? | | ??????????????????????????????????????? | | ??????????????????????????????????????? | | ??????????????????? ??????????????????? | | ?????????????????? ??????????????????? | | ?????????????????? "??????????????????? | | ?????????????????# ""?????????????????? | | ????????????????# ""?????????????????? | | ???????????????# ??????????????????? | | ??????????????? ???????????????????? | | ??????????????? ???????????????????? | | ?????????????## ????????????????????? | | ????????????## #????????????????????? | | ????????????# ##???????????????????? | | ????????????# #???????????????????? | | ????????????# ?????????????????????? | | ???????????## #??????????????????????? | | ??????????## @#??????????????????????? | | ??????????# %#??????????????????????? | | ??????????# = #??????????????????????? | | ?????????##g%% #??????????????????????? | | ????????##=%g=*#??????????????????????? | | ????????# [%%##??????????????????????? | | ????????# * g*#???????????????????????? | | ????????##% ##???????????????????????? | | ?????????#####????????????????????????? | | ??????????????????????????????????????? | | ??????????????????????????????????????? | | | | | | | | | | | | | | | | | | | | | | | | | | | | | +----------------------------------------------------+ Best States ------------- Heat Dissipation 28 Energy Generation 12 Energy Capacity 265 Matter Stores 300 Matter Capacity 300 Sight Range 16 Terrain Scan Density 10 Evasion (%) 55 Item Schematics ----------------- None Robot Schematics ------------------ None Fabricated ------------ Nothing Repaired ---------- Nothing Studied --------- None Alien Tech Used ----------------- None Achievements -------------- None Challenges ------------ None Game ------ Seed ArchitectLegParser Manual? 0 Play Time 00:07:52 Cumulative 9.3 hours Start 2026.08.03 @ 21:20:33 End 2026.08.03 @ 21:26:50 Sessions 1 Manual Loads 0 Difficulty Rogue Special Mode None Game No. 11 Rogue 9 Adventurer 2 Explorer 0 Win Type - Total 0 Types 0/0/0/0/0/0/0/0/0/0 Lore% 7 Gallery% 13 Achievement% 14 Wizard Run 0 Options --------- Layout 0 ASCII 0 Keyboard 1 Movement Numpad Keybinds 0 Fullscreen 1 Font 18/SmallcapsGlow Map View 76x50 Zoom Use 0% Tactical HUD 1 Map Filters NONE Filters NONE Steam 1 RUN: 41e26a66-3093-4a29-99a6-d0850946b67e